lending/lending_fUSD_20251124
["ID","MTS","AMOUNT","RATE_DAILY","PERIOD"]
[394815505,1763977853647,-151.0,0.00040038,120]
[394815506,1763977853657,-1073.11,0.00040038,8]
[394815507,1763977853667,-151.0,0.00040038,120]
[394815508,1763977853676,-151.0,0.00040038,120]
[394815509,1763977853686,-500.0,0.00040038,8]
[394815510,1763977853696,-747.02,0.00040038,8]
[394815511,1763977853706,-500.0,0.00040038,8]
[394815512,1763977853715,-269.822164,0.00040038,15]
[394815513,1763977853726,-269.822164,0.00040038,15]
[394815514,1763977853735,-269.822164,0.00040038,15]
[394815515,1763977853745,-151.0,0.00040038,120]
[394815516,1763977853755,-269.822164,0.00040038,15]
[394815517,1763977853765,-151.0,0.00040038,120]
[394815518,1763977853776,-230.071498,0.00040038,120]
[394815519,1763977853786,-500.0,0.00040038,8]
[394815520,1763977853796,-151.0,0.00040038,120]
[394815521,1763977853807,-151.0,0.00040038,120]
[394815522,1763977853817,-151.0,0.00040038,120]
[394815523,1763977853826,-239.181514,0.00040038,120]
[394815524,1763977853836,-955.65,0.00040038,8]
[394815525,1763977853846,-151.0,0.00040038,120]
[394815526,1763977853856,-436.53879996,0.00040038,8]
[394815527,1763977853865,-1610.93,0.0004009,8]
[394815528,1763977853874,-500.0,0.0004009,8]
[394815529,1763977853884,-500.0,0.0004009,2]
[394815530,1763977853893,-150.0,0.00040145,7]
[394815531,1763977853902,-598.0,0.0004018,20]
[394815532,1763977853911,-624.38598,0.00040211,8]
[394815533,1763977853922,-500.0,0.00040211,8]
[394815534,1763977853931,-168.04371873,0.00040224,14]
[394815535,1763977853941,-256.0,0.00040246,2]
[394815536,1763977853951,-256.0,0.00040246,2]
[394815537,1763977853961,-226.0195229,0.00040285,15]
[394815538,1763977853971,-1144.79,0.00040293,120]
[394815539,1763977853981,-500.0,0.00040311,8]
[394815540,1763977853991,-500.0,0.00040311,8]
[394815541,1763977854001,-500.0,0.00040311,8]
[394815542,1763977854010,-500.0,0.00040311,8]
[394815543,1763977854020,-500.0,0.00040312,8]
[394815544,1763977854031,-585.04,0.00040312,8]
[394815545,1763977854040,-331.25547349,0.00040312,8]
[394815546,1763977854050,-244.45342089,0.00040312,8]
[394815547,1763977854060,-500.0,0.00040312,8]
[394815548,1763977854070,-500.0,0.00040312,8]
[394815549,1763977854080,-500.0,0.00040312,8]
[394815550,1763977854089,-1073.11,0.00040312,8]
[394815551,1763977854098,-500.0,0.00040312,8]
[394815552,1763977854108,-747.02,0.00040312,8]
[394815553,1763977854117,-500.0,0.00040312,8]
[394815554,1763977854128,-500.0,0.00040312,8]
[394815555,1763977854138,-955.65,0.00040312,8]
[394815556,1763977854148,-500.0,0.00040332,7]
[394815557,1763977854158,-600.0,0.00040332,7]
[394815558,1763977854168,-500.0,0.00040332,7]
[394815559,1763977854178,-151.0,0.00040332,120]
[394815560,1763977854187,-151.0,0.00040332,120]
[394815561,1763977854197,-151.0,0.00040332,120]
[394815562,1763977854207,-151.0,0.00040361,120]
[394815563,1763977854216,-151.0,0.00040361,120]
[394815564,1763977854226,-151.0,0.00040361,60]
[394815565,1763977854236,-151.0,0.00040361,120]
[394815566,1763977854246,-151.0,0.00040361,120]
[394815567,1763977854257,-1610.93,0.00040364,8]
[394815568,1763977854267,-500.0,0.00040364,8]
[394815569,1763977854276,-500.0,0.00040364,2]
[394815570,1763977854288,-191.57478947,0.00040367,5]
[394815571,1763977854298,-150.0,0.00040367,7]
[394815572,1763977854307,-151.907598,0.00040428,2]
[394815573,1763977854317,-166.66,0.00040436,30]
[394815574,1763977854329,-500.0,0.00040485,8]
[394815575,1763977854339,-150.0,0.00040494,7]
[394815576,1763977854348,-150.0,0.00040494,7]
[394815577,1763977854360,-150.0,0.00040494,7]
[394815578,1763977854371,-150.0,0.00040494,7]
[394815579,1763977854380,-150.0,0.00040494,7]
[394815580,1763977854390,-6336.0,0.00040509,5]
[394815581,1763977854399,-292.96416619,0.00040564,28]
[394815582,1763977854409,-500.0,0.00040585,8]
[394815583,1763977854418,-500.0,0.00040585,8]
[394815584,1763977854428,-639.68254068,0.00040585,8]
[394815585,1763977854438,-256.0,0.00040586,7]
[394815586,1763977854448,-500.0,0.00040586,8]
[394815587,1763977854457,-585.04,0.00040586,8]
[394815588,1763977854467,-500.0,0.00040586,8]
[394815589,1763977854477,-299.127929,0.00040586,120]
[394815590,1763977854488,-151.0,0.00040586,120]
[394815591,1763977854497,-151.0,0.00040586,120]
[394815592,1763977854507,-500.0,0.00040586,8]
[394815593,1763977854517,-500.0,0.00040586,8]
[394815594,1763977854527,-1073.11,0.00040586,8]
[394815595,1763977854536,-500.0,0.00040586,8]
[394815596,1763977854547,-747.02,0.00040586,8]
[394815597,1763977854556,-500.0,0.00040586,8]
[394815598,1763977854567,-500.0,0.00040586,8]
[394815599,1763977854577,-955.65,0.00040586,8]
[394815600,1763977854587,-598.0,0.0004059,20]
[394815601,1763977854598,-1610.93,0.00040638,8]
[394815602,1763977854607,-500.0,0.00040638,8]
[394815603,1763977854618,-500.0,0.00040638,2]
[394815604,1763977854628,-500.0,0.00040661,30]
[394815605,1763977854637,-500.0,0.00040661,30]
[394815606,1763977854647,-500.0,0.00040661,30]
[394815607,1763977854657,-226.0195229,0.00040684,15]
[394815608,1763977854667,-639.78414144,0.00040705,2]
[394815609,1763977854677,-150.0,0.00040748,7]
[394815610,1763977854687,-500.0,0.00040759,8]
[394815611,1763977854697,-256.0,0.00040788,2]
[394815612,1763977854707,-274.5036522,0.000408,30]
[394815613,1763977854718,-150.0,0.00040843,7]
[394815614,1763977854729,-500.0,0.00040859,8]
[394815615,1763977854738,-179.22,0.00040859,8]
[394815616,1763977854749,-500.0,0.0004086,8]
[394815617,1763977854759,-585.04,0.0004086,8]
[394815618,1763977854769,-500.0,0.0004086,8]
[394815619,1763977854779,-500.0,0.0004086,8]
[394815620,1763977854788,-1073.11,0.0004086,8]
[394815621,1763977854798,-500.0,0.0004086,8]
[394815622,1763977854807,-747.02,0.0004086,8]
[394815623,1763977854817,-500.0,0.0004086,8]
[394815624,1763977854826,-500.0,0.0004086,8]
[394815625,1763977854836,-955.65,0.0004086,8]
[394815626,1763977854845,-1610.93,0.00040912,8]
[394815627,1763977854855,-500.0,0.00040912,8]
[394815628,1763977854864,-151.0,0.00040912,120]
[394815629,1763977854874,-151.0,0.00040912,30]
[394815630,1763977854884,-151.0,0.00040912,30]
[394815631,1763977854894,-500.0,0.00040912,2]
[394815632,1763977854904,-500.0,0.00040935,30]
[394815633,1763977854913,-500.0,0.00040935,30]
[394815634,1763977854923,-150.0,0.0004096,7]
[394815635,1763977854932,-326.0,0.00040968,7]
[394815636,1763977854942,-500.0,0.00040999,7]
[394815637,1763977854951,-438.72,0.00040999,2]
[394815638,1763977854961,-50000.0,0.00041,41]
[394815639,1763977854971,-598.0,0.00041,20]
[394815640,1763977854982,-171.0,0.00041,30]
[394815641,1763977854991,-171.0,0.00041,90]
[394815642,1763977855001,-151.0,0.00041,120]
[394815643,1763977855011,-151.0,0.00041,120]
[394815644,1763977855022,-151.0,0.00041,120]
[394815645,1763977855032,-151.0,0.00041,120]
[394815646,1763977855042,-151.0,0.00041,120]
[394815647,1763977855051,-189.623393,0.00041,120]
[394815648,1763977855062,-189.623393,0.00041,120]
[394815649,1763977855072,-151.0,0.00041,120]
[394815650,1763977855083,-189.623393,0.00041,120]
[394815651,1763977855094,-151.0,0.00041,120]
[394815652,1763977855103,-189.623393,0.00041,120]
[394815653,1763977855114,-165.621575,0.00041,120]
[394815654,1763977855123,-151.0,0.00041,120]
[394815655,1763977855134,-165.621575,0.00041,120]
[394815656,1763977855143,-165.621575,0.00041,120]
[394815657,1763977855153,-165.621575,0.00041,120]
[394815658,1763977855163,-151.0,0.00041,120]
[394815659,1763977855173,-1501.34,0.00041014,2]
[394815660,1763977855183,-489.38,0.00041014,2]
[394815661,1763977855192,-316.90797564,0.00041019,7]
[394815662,1763977855202,-59413.6662874,0.00041029,2]
[394815663,1763977855212,-177.6009728,0.00041029,2]
[394815664,1763977855221,-225.933366,0.00041029,60]
[394815665,1763977855231,-151.0,0.00041029,120]
[394815666,1763977855241,-151.0,0.00041029,120]
[394815667,1763977855251,-151.0,0.00041029,120]
[394815668,1763977855260,-164.732687,0.00041029,120]
[394815669,1763977855269,-151.0,0.00041029,120]
[394815670,1763977855279,-151.0,0.00041029,120]
[394815671,1763977855292,-151.0,0.00041029,120]
[394815672,1763977855302,-69732.3548501,0.00041029,2]
[394815673,1763977855313,-261.846033,0.00041029,120]
[394815674,1763977855323,-261.846033,0.00041029,120]
[394815675,1763977855335,-261.846033,0.00041029,120]
[394815676,1763977855345,-261.846037,0.00041029,120]
[394815677,1763977855499,-151.0,0.00041029,120]
[394815678,1763977855509,-4470.2328942,0.00041029,2]
[394815679,1763977855519,-151.0,0.00041029,120]
[394815680,1763977855529,-151.0,0.00041029,120]
[394815681,1763977855539,-269.822164,0.00041029,15]
[394815682,1763977855549,-269.822164,0.00041029,15]
[394815683,1763977855559,-269.822164,0.00041029,15]
[394815684,1763977855568,-151.0,0.00041029,120]
[394815685,1763977855577,-269.822164,0.00041029,15]
[394815686,1763977855586,-151.0,0.00041029,120]
[394815687,1763977855595,-151.0,0.00041029,120]
[394815688,1763977855604,-151.0,0.00041029,120]
[394815689,1763977855614,-151.0,0.00041029,120]
[394815690,1763977855624,-151.0,0.00041029,120]
[394815691,1763977855633,-151.0,0.00041029,120]
[394815692,1763977855642,-151.0,0.00041029,30]
[394815693,1763977855652,-151.0,0.00041029,30]
[394815694,1763977855661,-500.0,0.00041033,8]
[394815695,1763977855670,-151.0,0.00041082,120]
[394815696,1763977855680,-178.350765,0.00041082,120]
[394815697,1763977855690,-226.0195229,0.00041082,15]
[394815698,1763977855700,-401.12,0.0004109,2]
[394815699,1763977855710,-151.0,0.00041096,50]
[394815700,1763977855719,-173.847373,0.00041096,60]
[394815701,1763977855728,-150.0,0.00041096,60]
[394815702,1763977855737,-150.0,0.00041096,60]
[394815703,1763977855747,-152.06180931,0.00041096,60]
[394815704,1763977855757,-150.0,0.00041096,60]
[394815705,1763977855767,-150.0,0.00041096,60]
[394815706,1763977855776,-150.0,0.00041096,60]
[394815707,1763977855785,-150.0,0.00041096,60]
[394815708,1763977855794,-1000.0,0.00041096,60]
[394815709,1763977855803,-150.0,0.00041096,60]
[394815710,1763977855812,-150.0,0.00041096,60]
[394815711,1763977855821,-500.0,0.00041096,60]
[394815712,1763977855830,-829.0,0.00041096,120]
[394815713,1763977855839,-150.0,0.00041096,60]
[394815714,1763977855848,-150.0,0.00041096,60]
[394815715,1763977855859,-151.0,0.00041096,120]
[394815716,1763977855868,-151.0,0.00041096,120]
[394815717,1763977855878,-151.0,0.00041096,120]
[394815718,1763977855887,-151.0,0.00041096,120]
[394815719,1763977855896,-189.623393,0.00041096,120]
[394815720,1763977855906,-189.623393,0.00041096,120]
[394815721,1763977855915,-151.0,0.00041096,120]
[394815722,1763977855924,-189.623393,0.00041096,120]
[394815723,1763977855934,-151.0,0.00041096,120]
[394815724,1763977855943,-189.623392,0.00041096,120]
[394815725,1763977855953,-165.621575,0.00041096,120]
[394815726,1763977855962,-181.616462,0.00041096,120]
[394815727,1763977855971,-165.621575,0.00041096,120]
[394815728,1763977855981,-165.621575,0.00041096,120]
[394815729,1763977855990,-165.621577,0.00041096,120]
[394815730,1763977855999,-151.0,0.00041096,120]
[394815731,1763977856009,-500.0,0.000411,2]
[394815732,1763977856018,-150.0,0.00041129,30]
[394815733,1763977856028,-500.0,0.00041133,8]
[394815734,1763977856037,-186.57498517,0.00041134,2]
[394815735,1763977856047,-500.0,0.00041134,8]
[394815736,1763977856056,-585.04,0.00041134,8]
[394815737,1763977856066,-500.0,0.00041134,8]
[394815738,1763977856075,-500.0,0.00041134,8]
[394815739,1763977856084,-643.67089,0.00041134,7]
[394815740,1763977856093,-1073.11,0.00041134,8]
[394815741,1763977856103,-500.0,0.00041134,8]
[394815742,1763977856112,-747.02,0.00041134,8]
[394815743,1763977856121,-500.0,0.00041134,8]
[394815744,1763977856131,-500.0,0.00041134,8]
[394815745,1763977856141,-955.65,0.00041134,8]
[394815746,1763977856150,-355.2,0.00041151,30]
[394815747,1763977856159,-551.17,0.00041151,30]
[394815748,1763977856168,-417.48,0.00041151,30]
[394815749,1763977856177,-150.0,0.00041151,30]
[394815750,1763977856186,-1211.61,0.00041151,30]
[394815751,1763977856195,-551.17,0.00041151,30]
[394815752,1763977856204,-169.75,0.00041151,30]
[394815753,1763977856213,-417.48,0.00041151,30]
[394815754,1763977856222,-1211.61,0.00041151,30]
[394815755,1763977856233,-169.75,0.00041151,30]
[394815756,1763977856242,-551.17,0.00041151,30]
[394815757,1763977856252,-150.0,0.00041151,30]
[394815758,1763977856261,-1210.76,0.00041151,30]
[394815759,1763977856270,-417.48,0.00041151,30]
[394815760,1763977856281,-551.17,0.00041151,30]
[394815761,1763977856295,-169.52,0.00041151,30]
[394815762,1763977856304,-417.16,0.00041151,30]
[394815763,1763977856314,-150.0,0.00041151,30]
[394815764,1763977856323,-550.01,0.00041151,30]
[394815765,1763977856333,-150.0,0.00041151,30]
[394815766,1763977856343,-600.0,0.00041154,60]
[394815767,1763977856352,-620.0,0.00041154,15]
[394815768,1763977856363,-620.0,0.00041154,15]
[394815769,1763977856372,-500.0,0.00041154,15]
[394815770,1763977856381,-500.0,0.00041154,15]
[394815771,1763977856391,-500.0,0.00041154,15]
[394815772,1763977856399,-597.09424157,0.00041154,15]
[394815773,1763977856409,-578.20924308,0.00041154,15]
[394815774,1763977856418,-599.60298507,0.00041154,15]
[394815775,1763977856428,-500.0,0.00041154,15]
[394815776,1763977856438,-177.67990383,0.00041154,15]
[394815777,1763977856448,-500.0,0.00041154,15]
[394815778,1763977856457,-247.89835245,0.00041154,15]
[394815779,1763977856466,-500.0,0.00041154,15]
[394815780,1763977856476,-500.0,0.00041154,15]
[394815781,1763977856486,-500.0,0.00041154,15]
[394815782,1763977856495,-500.0,0.00041154,15]
[394815783,1763977856504,-500.0,0.00041154,15]
[394815784,1763977856514,-500.0,0.00041154,15]
[394815785,1763977856523,-500.0,0.00041154,15]
[394815786,1763977856533,-500.0,0.00041154,15]
[394815787,1763977856542,-500.0,0.00041154,15]
[394815788,1763977856552,-500.0,0.00041154,15]
[394815789,1763977856562,-500.0,0.00041154,15]
[394815790,1763977856571,-500.0,0.00041154,15]
[394815791,1763977856582,-500.0,0.00041154,15]
[394815792,1763977856591,-500.0,0.00041154,15]
[394815793,1763977856602,-500.0,0.00041154,15]
[394815794,1763977856613,-500.0,0.00041154,15]
[394815795,1763977856622,-500.0,0.00041154,15]
[394815796,1763977856633,-500.0,0.00041154,15]
[394815797,1763977856642,-500.0,0.00041154,15]
[394815798,1763977856652,-500.0,0.00041154,15]
[394815799,1763977856661,-475.70981304,0.00041154,15]
[394815800,1763977856671,-500.0,0.00041154,15]
[394815801,1763977856680,-500.0,0.00041154,15]
[394815802,1763977856689,-500.0,0.00041154,15]
[394815803,1763977856699,-500.0,0.00041154,15]
[394815804,1763977856708,-500.0,0.00041154,15]
[394815805,1763977856718,-500.0,0.00041154,15]
[394815806,1763977856727,-500.0,0.00041154,15]
[394815807,1763977856738,-500.0,0.00041154,15]
[394815808,1763977856748,-500.0,0.00041154,15]
[394815809,1763977856758,-500.0,0.00041154,15]
[394815810,1763977856768,-500.0,0.00041154,15]
[394815811,1763977856778,-500.0,0.00041154,15]
[394815812,1763977856788,-500.0,0.00041154,15]
[394815813,1763977856798,-500.0,0.00041154,15]
[394815814,1763977856807,-500.0,0.00041154,15]
[394815815,1763977856817,-500.0,0.00041154,15]
[394815816,1763977856827,-1610.93,0.00041186,8]
[394815817,1763977856836,-500.0,0.00041186,8]
[394815818,1763977856846,-500.0,0.00041186,2]
[394815819,1763977856856,-150.0,0.00041192,30]
[394815820,1763977856865,-150.0,0.00041192,30]
[394815821,1763977856875,-150.0,0.00041192,30]
[394815822,1763977856884,-326.0,0.00041195,120]
[394815823,1763977856893,-500.0,0.00041206,120]
[394815824,1763977856903,-223.922398,0.00041206,120]
[394815825,1763977856912,-500.0,0.00041209,30]
[394815826,1763977856921,-500.0,0.00041209,30]
[394815827,1763977856930,-292.96416619,0.00041222,28]
[394815828,1763977856940,-150.0,0.00041233,60]
[394815829,1763977856950,-150.0,0.00041233,60]
[394815830,1763977856959,-200.0,0.00041233,60]
[394815831,1763977856968,-200.0,0.00041233,60]
[394815832,1763977856977,-200.0,0.00041233,60]
[394815833,1763977856988,-1000.0,0.00041233,60]
[394815834,1763977856996,-200.0,0.00041233,60]
[394815835,1763977857006,-150.0,0.00041233,60]
[394815836,1763977857015,-648.05767948,0.00041233,60]
[394815837,1763977857025,-829.0,0.00041233,120]
[394815838,1763977857035,-150.0,0.00041233,60]
[394815839,1763977857044,-150.0,0.00041233,60]
[394815840,1763977857054,-166.66,0.00041237,30]
[394815841,1763977857063,-489.14488506,0.000413,3]
[394815842,1763977857072,-500.0,0.00041307,8]
[394815843,1763977857082,-173.0,0.00041327,2]
[394815844,1763977857091,-552.13401393,0.0004133,120]
[394815845,1763977857100,-200.0,0.0004137,60]
[394815846,1763977857109,-150.0,0.0004137,60]
[394815847,1763977857118,-1000.0,0.0004137,60]
[394815848,1763977857128,-150.0,0.0004137,60]
[394815849,1763977857137,-829.0,0.0004137,120]
[394815850,1763977857147,-150.0,0.0004137,60]
[394815851,1763977857156,-489.14488506,0.00041396,3]
[394815852,1763977857165,-500.0,0.00041399,7]
[394815853,1763977857175,-103034.23554431,0.000414,30]
[394815854,1763977857184,-209.127849,0.000414,120]
[394815855,1763977857193,-151.0,0.000414,60]
[394815856,1763977857202,-151.0,0.000414,120]
[394815857,1763977857212,-151.0,0.000414,120]
[394815858,1763977857221,-500.0,0.00041407,8]
[394815859,1763977857231,-500.0,0.00041408,8]
[394815860,1763977857240,-585.04,0.00041408,8]
[394815861,1763977857249,-500.0,0.00041408,8]
[394815862,1763977857259,-500.0,0.00041408,8]
[394815863,1763977857268,-1073.11,0.00041408,8]
[394815864,1763977857278,-500.0,0.00041408,8]
[394815865,1763977857292,-747.02,0.00041408,8]
[394815866,1763977857302,-500.0,0.00041408,8]
[394815867,1763977857312,-955.65,0.00041408,8]
[394815868,1763977857323,-598.0,0.0004141,20]
[394815869,1763977857333,-150.0,0.00041425,30]
[394815870,1763977857343,-151.907598,0.00041428,2]
[394815871,1763977857352,-168.0,0.00041432,2]
[394815872,1763977857362,-172.0,0.00041445,2]
[394815873,1763977857372,-1610.93,0.0004146,8]
[394815874,1763977857381,-500.0,0.0004146,8]
[394815875,1763977857391,-500.0,0.0004146,2]
[394815876,1763977857401,-226.0195229,0.00041481,15]
[394815877,1763977857410,-500.0,0.00041483,30]
[394815878,1763977857419,-500.0,0.00041483,30]
[394815879,1763977857428,-489.14488506,0.00041492,3]
[394815880,1763977857438,-755.68515863,0.000415,38]
[394815881,1763977857448,-150.0,0.00041507,60]
[394815882,1763977857458,-1000.0,0.00041507,60]
[394815883,1763977857467,-150.0,0.00041507,60]
[394815884,1763977857477,-829.0,0.00041507,120]
[394815885,1763977857488,-150.0,0.00041507,60]
[394815886,1763977857501,-150.0,0.0004151,30]
[394815887,1763977857510,-168.0,0.00041512,7]
[394815888,1763977857520,-168.0,0.0004152,2]
[394815889,1763977857530,-150.0,0.00041541,30]
[394815890,1763977857539,-160.880663,0.00041545,120]
[394815891,1763977857550,-500.0,0.00041581,8]
[394815892,1763977857560,-489.14488506,0.00041588,4]
[394815893,1763977857570,-161.0,0.00041644,60]
[394815894,1763977857579,-1000.0,0.00041644,60]
[394815895,1763977857589,-250.0,0.00041644,60]
[394815896,1763977857598,-829.0,0.00041644,120]
[394815897,1763977857607,-214.0,0.00041644,60]
[394815898,1763977857617,-500.0,0.00041681,8]
[394815899,1763977857626,-226.53098929,0.00041682,8]
[394815900,1763977857636,-585.04,0.00041682,8]
[394815901,1763977857645,-500.0,0.00041682,8]
[394815902,1763977857655,-228.41358005,0.00041682,8]
[394815903,1763977857664,-1073.11,0.00041682,8]
[394815904,1763977857674,-500.0,0.00041682,8]
[394815905,1763977857684,-747.02,0.00041682,8]
[394815906,1763977857697,-500.0,0.00041682,8]
[394815907,1763977857706,-955.65,0.00041682,8]
[394815908,1763977857716,-489.14488506,0.00041683,4]
[394815909,1763977857726,-1250.0,0.000417,30]
[394815910,1763977857736,-600.0,0.00041702,60]
[394815911,1763977857746,-1610.93,0.00041734,8]
[394815912,1763977857755,-500.0,0.00041734,8]
[394815913,1763977857765,-500.0,0.00041734,2]
[394815914,1763977857774,-173.0,0.00041738,7]
[394815915,1763977857784,-172.0,0.00041753,2]
[394815916,1763977857793,-500.0,0.00041757,30]
[394815917,1763977857803,-500.0,0.00041757,30]
[394815918,1763977857812,-151.0,0.00041765,60]
[394815919,1763977857822,-500.0,0.00041768,7]
[394815920,1763977857831,-500.0,0.00041768,7]
[394815921,1763977857841,-151.0,0.00041769,120]
[394815922,1763977857851,-23246.6794159,0.00041769,21]
[394815923,1763977857860,-470125.46312306,0.0004177,30]
[394815924,1763977858008,-8268.1571751,0.00037368,2]
[394815925,1763977858019,-257.2012001,0.00037368,2]
[394815926,1763977858029,-5014.9113566,0.0004177,30]
[394815927,1763977858040,-10250.8,0.0004177,30]
[394815928,1763977858147,-500.0,0.0003735,8]
[394815929,1763977858157,-533.8784336,0.00038394,8]
[394815930,1763977858166,-151.0,0.00038668,120]
[394815931,1763977858175,-151.0,0.00038668,120]
[394815932,1763977858185,-207.281459,0.00038668,60]
[394815933,1763977858194,-151.0,0.00038942,120]
[394815934,1763977858203,-151.0,0.00038942,120]
[394815935,1763977858212,-151.0,0.00039764,120]
[394815936,1763977858221,-151.0,0.00039764,120]
[394815937,1763977858230,-151.0,0.00039764,120]
[394815938,1763977858239,-151.0,0.00041,120]
[394815939,1763977858252,-247.44943,0.00041,120]
[394815940,1763977858261,-151.0,0.00041096,120]
[394815941,1763977858270,-16163.70562493,0.0004177,30]
[394815942,1763977858304,-1985.73665568,0.0004177,30]
[394815943,1763977858316,-603.6966655,0.0004177,30]
[394815944,1763977858345,-21335.03770631,0.0004177,30]
[394815945,1763977858378,-441.37232297,0.0003735,8]
[394815946,1763977858389,-58.62767703,0.0003735,8]
[394815947,1763977858398,-8525.35837516,0.00037869,2]
[394815948,1763977858407,-500.0,0.00038394,8]
[394815949,1763977858417,-400.0,0.00038668,8]
[394815950,1763977858426,-12347.78162134,0.0004177,30]
[394815951,1763977858437,-2871.126,0.0004177,30]
[394815952,1763977858448,-470.3254286,0.0004177,30]
[394815953,1763977858463,-464.57653378,0.0004177,30]
[394815954,1763977858474,-1425.7980587,0.0004177,30]
[394815955,1763977858486,-56941.0410255,0.0004177,30]
[394815956,1763977858496,-489.14488506,0.00041779,4]
[394815957,1763977858505,-1000.0,0.00041781,60]
[394815958,1763977858515,-829.0,0.00041781,120]
[394815959,1763977858524,-315.44664408,0.00041799,120]
[394815960,1763977858533,-256.0,0.00041811,7]
[394815961,1763977858542,-381.13592783,0.0004182,20]
[394815962,1763977858553,-216.86407217,0.0004182,20]
[394815963,1763977858562,-350.0,0.0004185,10]
[394815964,1763977858573,-350.0,0.0004185,10]
[394815965,1763977858582,-616.85,0.0004185,10]
[394815966,1763977858591,-500.0,0.00041855,8]
[394815967,1763977858601,-489.14488506,0.00041875,5]
[394815968,1763977858610,-500.0,0.00041878,7]
[394815969,1763977858619,-168.04371873,0.00041879,16]
[394815970,1763977858629,-226.0195229,0.00041879,15]
[394815971,1763977858638,-292.96416619,0.0004188,28]
[394815972,1763977858648,-2135.89955538,0.0004188,2]
[394815973,1763977858657,-245.77897441,0.0004189,30]
[394815974,1763977858667,-255.53695245,0.0004189,30]
[394815975,1763977858677,-162.44314539,0.0004189,30]
[394815976,1763977858687,-182.46805895,0.0004189,30]
[394815977,1763977858696,-192.81251867,0.0004189,30]
[394815978,1763977858706,-152.20025882,0.0004189,30]
[394815979,1763977858716,-158.27867006,0.0004189,30]
[394815980,1763977858729,-158.24414474,0.0004189,30]
[394815981,1763977858738,-279.51550177,0.0004189,30]
[394815982,1763977858747,-339.10964822,0.000419,120]
[394815983,1763977858757,-1121.18936556,0.000419,120]
[394815984,1763977858766,-193.19426834,0.000419,120]
[394815985,1763977858775,-214.46559517,0.000419,120]
[394815986,1763977858785,-311.96117556,0.000419,120]
[394815987,1763977858795,-187.87026222,0.000419,120]
[394815988,1763977858804,-500.0,0.00041917,120]
[394815989,1763977858813,-500.0,0.00041917,120]
[394815990,1763977858823,-500.0,0.00041917,120]
[394815991,1763977858832,-500.0,0.00041917,120]
[394815992,1763977858853,-1000.0,0.00041918,60]
[394815993,1763977858863,-829.0,0.00041918,120]
[394815994,1763977858872,-500.0,0.00041919,30]
[394815995,1763977858882,-500.0,0.00041919,31]
[394815996,1763977858891,-500.0,0.00041919,32]
[394815997,1763977858901,-500.0,0.00041919,33]
[394815998,1763977858910,-500.0,0.00041919,30]
[394815999,1763977858920,-500.0,0.00041919,31]
[394816000,1763977858929,-500.0,0.00041919,32]
[394816001,1763977858939,-500.0,0.00041919,30]
[394816002,1763977858948,-500.0,0.00041919,31]
[394816003,1763977859156,-500.0,0.00041919,32]
[394816004,1763977859166,-500.0,0.00041919,30]